[Event "Portugal Open 2019"]
[Site "Lisbon"]
[Date "2019.02.07"]
[Round "7.10"]
[White "Fus, Jakub"]
[Black "Jakubowski, Krzysztof"]
[Result "1/2-1/2"]
[ECO "B08"]
[WhiteElo "2326"]
[BlackElo "2514"]
[Annotator "RC"]
[PlyCount "103"]
[EventDate "2019.01.25"]
[EventType "swiss"]
[EventCountry "POR"]
[SourceTitle "playchess.com"]
[Source "ChessBase"]
[SourceQuality "1"]
[TimeControl "5400+30"]

1. d4 {[%emt 0:00:00]} d6 {[%emt 0:00:00]} 2. e4 {[%emt 0:00:03]} Nf6 {[%emt 0:00:00]} 3. Nc3 {[%emt 0:00:21]} g6 {[%emt 0:00:13]} 4. Nf3 {[%emt 0:00:29]} Bg7 {[%emt 0:00:13]} 5. Be2 {[%emt 0:00:33]} Bg4 {[%emt 0:01:00]} 6. Be3 {[%emt 0:00:54]} O-O {[%emt 0:00:36]} 7. O-O {[%emt 0:00:29]} c6 {[%emt 0:00:29]} 8. a4 {[%emt 0:00:48]} a5 {[%emt 0:00:21]} 9. h3 {[%emt 0:02:55]} Bxf3 {[%emt 0:01:34]} 10. Bxf3 {[%emt 0:00:09]} Nbd7 {[%emt 0:00:09]} 11. Be2 {[%emt 0:00:46]} e5 {[%emt 0:00:31]} 12. dxe5 {[%emt 0:01:04]} dxe5 {[%emt 0:00:12]} 13. Bc4 {[%emt 0:00:34]} Qe7 {[%emt 0:00:22]} 14. Qe2 {[%emt 0:13:55]} Nc5 {[%emt 0:01:55]} 15. Bg5 {[%emt 0:01:19]} h6 {[%emt 0:02:50]} 16. Bd2 {[%emt 0:06:20]} Rfd8 {[%emt 0:04:17]} 17. Rad1 {[%emt 0:03:44]} Rd4 {[%emt 0:08:01]} 18. Be3 {[%emt 0:06:16]} Rxd1 {[%emt 0:02:44]} 19. Rxd1 {[%emt 0:00:16]} Bf8 {[%emt 0:00:44]} 20. f3 {[%emt 0:09:46]} Rd8 {[%emt 0:02:48]} 21. Rxd8 {[%emt 0:02:42]} Qxd8 {[%emt 0:00:45]} 22. Qd2 {[%emt 0:03:10]} Qxd2 {[%emt 0:00:45]} 23. Bxd2 {[%emt 0:00:09]} Ncd7 {[%emt 0:00:07]} 24. g3 Kg7 {[%emt 0:00:55]} 25. Nd1 {[%emt 0:03:57]} Bc5+ {[%emt 0:01:56]} 26. Kg2 {[%emt 0:01:18]} Bb6 {[%emt 0:01:49]} 27. Ne3 {[%emt 0:03:27]} Ne8 {[%emt 0:02:10]} 28. Be2 {[%emt 0:02:36]} Bxe3 {[%emt 0:05:14]} 29. Bxe3 {[%emt 0:00:19]} Nd6 {[%emt 0:00:04]} 30. Bd3 {[%emt 0:02:53]} g5 {[%emt 0:10:36]} 31. f4 {[%emt 0:07:42]} f6 {[%emt 0:00:26]} 32. Kf3 {[%emt 0:02:47]} b6 {[%emt 0:02:48]} 33. c3 {[%emt 0:02:39]} gxf4 {[%emt 0:03:34]} 34. gxf4 {[%emt 0:00:14]} exf4 {[%emt 0:00:04]} 35. Bxf4 {[%emt 0:06:02]} Ne5+ {[%emt 0:00:27]} 36. Ke2 {[%emt 0:00:09]} c5 {[%emt 0:01:18]} 37. Bc2 {[%emt 0:03:20]} Kg6 {[%emt 0:01:08]} 38. b3 {[%emt 0:02:15]} Kh5 {[%emt 0:02:29]} 39. Ke3 {[%emt 0:01:22]} Ndf7 {[%emt 0:08:51]} 40. Bg3 {[%emt 0:00:14]} Nd6 {[%emt 0:08:37]} 41. Bd1+ {[%emt 0:01:16]} Kg6 {[%emt 0:00:24]} 42. Be2 {[%emt 0:00:08]} Ndf7 {[%emt 0:01:11]} 43. Bf4 {[%emt 0:01:56]} Nd6 {[%emt 0:02:00]} 44. Bg3 {[%emt 0:00:10]} Ndf7 {[%emt 0:02:08]} 45. Bf4 {[%emt 0:03:27]} Nd6 {[%emt 0:00:36]} 46. Bg4 {[%emt 0:01:38]} h5 {[%emt 0:03:46]} 47. Be6 {[%emt 0:00:10]} h4 {[%emt 0:00:04]} 48. Bh2 {[%emt 0:01:05]} Kg5 {[%emt 0:04:45]} 49. Bf4+ {[%emt 0:00:05]} Kg6 {[%emt 0:00:03]} 50. Bh2 {[%emt 0:00:03]} Kg5 {[%emt 0:00:27]} 51. Bf4+ {[%emt 0:01:55]} Kg6 {[%emt 0:00:05]} 52. Bh2 {[%emt 0:00:10]} 1/2-1/2

[Event "Portugal Open 2019"]
[Site "Lisbon"]
[Date "2019.02.07"]
[Round "7.20"]
[White "Srinath, Rao S.V."]
[Black "Sande Edreira, Jose Antonio"]
[Result "1/2-1/2"]
[ECO "B22"]
[WhiteElo "2437"]
[BlackElo "2244"]
[Annotator "RC"]
[PlyCount "124"]
[EventDate "2019.01.25"]
[EventType "swiss"]
[EventCountry "POR"]
[SourceTitle "playchess.com"]
[Source "ChessBase"]
[SourceQuality "1"]
[TimeControl "5400+30"]

1. e4 {[%emt 0:00:00]} c5 {[%emt 0:02:01]} 2. c3 {[%emt 0:00:00]} d5 {[%emt 0:00:07]} 3. exd5 {[%emt 0:00:00]} Qxd5 {[%emt 0:00:04]} 4. d4 {[%emt 0:00:00]} cxd4 {[%emt 0:00:07]} 5. cxd4 {[%emt 0:00:00]} Nc6 {[%emt 0:00:08]} 6. Nf3 {[%emt 0:00:00]} e5 {[%emt 0:00:06]} 7. Nc3 {[%emt 0:00:05]} Bb4 {[%emt 0:00:11]} 8. Be2 {[%emt 0:00:04]} exd4 {[%emt 0:00:25]} 9. O-O {[%emt 0:00:04]} Qd8 {[%emt 0:00:11]} 10. Nb5 {[%emt 0:00:19]} Nf6 {[%emt 0:00:11]} 11. Nfxd4 {[%emt 0:03:27]} Nxd4 {[%emt 0:00:07]} 12. Nxd4 {[%emt 0:00:04]} O-O {[%emt 0:00:09]} 13. Bf3 {[%emt 0:00:37]} Qb6 {[%emt 0:00:40]} 14. Nb3 {[%emt 0:01:18]} Rd8 {[%emt 0:17:51]} 15. Qc2 {[%emt 0:01:10]} Bd7 {[%emt 0:06:14]} 16. Be3 {[%emt 0:00:20]} Qa6 {[%emt 0:01:24]} 17. Nc5 {[%emt 0:02:21]} Bxc5 {[%emt 0:00:24]} 18. Qxc5 {[%emt 0:00:05]} Bg4 {[%emt 0:16:11]} 19. Bxg4 {[%emt 0:06:52]} Nxg4 {[%emt 0:00:06]} 20. Bg5 {[%emt 0:01:49]} Rac8 {[%emt 0:04:23]} 21. Qf5 {[%emt 0:03:35]} Nf6 {[%emt 0:00:07]} 22. Rae1 {[%emt 0:02:54]} h6 {[%emt 0:04:14]} 23. Bh4 {[%emt 0:03:11]} Rc4 {[%emt 0:02:22]} 24. Bxf6 {[%emt 0:01:34]} Qxf6 {[%emt 0:00:07]} 25. Qxf6 {[%emt 0:00:09]} gxf6 {[%emt 0:00:03]} 26. Re2 {[%emt 0:00:08]} Rdc8 {[%emt 0:00:42]} 27. f3 {[%emt 0:01:00]} Rc2 {[%emt 0:00:46]} 28. Rfe1 {[%emt 0:00:03]} Kg7 {[%emt 0:00:34]} 29. Kf2 {[%emt 0:00:05]} Kg6 {[%emt 0:03:45]} 30. Rxc2 {[%emt 0:00:58]} Rxc2+ {[%emt 0:00:04]} 31. Re2 {[%emt 0:00:03]} Rc7 {[%emt 0:07:34]} 32. Ke3 {[%emt 0:00:27]} Rd7 {[%emt 0:07:29]} 33. Rd2 {[%emt 0:00:05]} Re7+ {[%emt 0:00:06]} 34. Kf4 {[%emt 0:01:17]} f5 {[%emt 0:02:00]} 35. h4 {[%emt 0:00:49]} h5 {[%emt 0:01:12]} 36. g3 {[%emt 0:01:41]} f6 {[%emt 0:00:50]} 37. b3 {[%emt 0:20:31]} Rc7 {[%emt 0:00:04]} 38. Rd3 {[%emt 0:05:29]} Re7 {[%emt 0:03:47]} 39. a3 {[%emt 0:05:51]} a6 {[%emt 0:03:01]} 40. Rd5 {[%emt 0:05:04]} Rc7 {[%emt 0:00:05]} 41. Rxf5 {[%emt 0:01:35]} Rc3 {[%emt 0:00:04]} 42. Ra5 {[%emt 0:00:49]} Rxb3 {[%emt 0:00:10]} 43. g4 {[%emt 0:00:05]} Rc3 {[%emt 0:01:41]} 44. gxh5+ {[%emt 0:00:30]} Kh6 {[%emt 0:00:42]} 45. Kg4 {[%emt 0:00:16]} Rc6 {[%emt 0:04:00]} 46. f4 {[%emt 0:00:57]} b5 {[%emt 0:00:13]} 47. a4 {[%emt 0:01:55]} Rb6 {[%emt 0:00:32]} 48. axb5 {[%emt 0:02:01]} axb5 {[%emt 0:00:05]} 49. Ra3 {[%emt 0:02:01]} b4 {[%emt 0:00:05]} 50. Rb3 {[%emt 0:00:03]} Rb5 {[%emt 0:00:44]} 51. f5 {[%emt 0:00:05]} Rb6 {[%emt 0:02:01]} 52. Kg3 {[%emt 0:04:09]} Kxh5 {[%emt 0:00:07]} 53. Kf4 {[%emt 0:00:12]} Rb5 {[%emt 0:02:41]} 54. Kg3 {[%emt 0:00:45]} Rb8 {[%emt 0:00:30]} 55. Kf4 {[%emt 0:06:20]} Rg8 {[%emt 0:00:15]} 56. Ke4 {[%emt 0:00:56]} Rg4+ {[%emt 0:01:05]} 57. Kd5 {[%emt 0:00:46]} Kxh4 {[%emt 0:00:08]} 58. Ke6 {[%emt 0:00:55]} Kg5 {[%emt 0:00:05]} 59. Re3 {[%emt 0:00:53]} Rc4 {[%emt 0:01:27]} 60. Rg3+ {[%emt 0:02:06]} Kf4 {[%emt 0:00:31]} 61. Rb3 {[%emt 0:03:05]} Re4+ {[%emt 0:00:16]} 62. Kxf6 {[%emt 0:00:06]} Rc4 {[%emt 0:01:51] Ke5+ Ke4+} 1/2-1/2

[Event "Portugal Open 2019"]
[Site "Lisbon"]
[Date "2019.02.07"]
[Round "7.24"]
[White "Rego, Pedro Filipe"]
[Black "Di Nicolantonio, Lucas"]
[Result "0-1"]
[ECO "B06"]
[WhiteElo "2228"]
[BlackElo "2364"]
[Annotator "NA RC"]
[PlyCount "68"]
[EventDate "2019.01.25"]
[EventType "swiss"]
[EventCountry "POR"]
[SourceTitle "playchess.com"]
[Source "ChessBase"]
[SourceQuality "1"]
[TimeControl "5400+30"]

1. e4 {[%emt 0:00:00]} g6 {[%emt 0:02:12]} 2. Nc3 {[%emt 0:03:55]} Bg7 {[%emt 0:00:48]} 3. d4 {[%emt 0:00:50]} d6 {[%emt 0:00:17]} 4. Be3 {[%emt 0:01:33]} a6 {[%emt 0:00:18]} 5. Qd2 {[%emt 0:00:31]} b5 {[%emt 0:00:21]} 6. f3 {[%emt 0:01:19]} Nd7 {[%emt 0:01:12]} 7. O-O-O {[%emt 0:29:20]} Bb7 {[%emt 0:00:39]} 8. h4 {[%emt 0:04:02]} h6 {[%emt 0:02:01]} (8... h5 $11) 9. Kb1 {[%emt 0:09:25]} Rc8 {[%emt 0:07:42]} 10. g4 {[%emt 0:05:21]} c5 {[%emt 0:02:39]} 11. Nce2 {[%emt 0:05:35]} (11. Nh3 $16) 11... Qc7 {[%emt 0:15:25]} 12. Rc1 {[%emt 0:01:35]} ({White should play} 12. c3 $14) 12... e6 {[%emt 0:04:03]} 13. Ng3 {[%emt 0:03:35]} (13. c3 $11) 13... Ne7 {[%emt 0:02:42]} ({Black should play} 13... d5 $15) 14. c3 {[%emt 0:15:15]} Nb6 {[%emt 0:05:49]} 15. Bd3 {[%emt 0:01:35]} Nc6 {[%emt 0:29:54]} 16. N1e2 {[%emt 0:00:10]} Na5 {[%emt 0:00:09]} 17. b3 {[%emt 0:03:41]} c4 {[%emt 0:02:22]} 18. Bc2 {[%emt 0:00:06]} cxb3 {[%emt 0:00:16]} 19. axb3 {[%emt 0:00:06]} d5 {[%emt 0:00:26]} 20. c4 {[%emt 0:02:45]} (20. Bd1 $11 {keeps the balance.}) 20... Nbxc4 {[%emt 0:06:13]} 21. bxc4 {[%emt 0:00:04]} Nxc4 {[%emt 0:00:04]} 22. Qd3 {[%emt 0:01:54]} ({Much worse is} 22. Qc3 $6 O-O $11) 22... e5 {[%emt 0:01:23]} ({Don't play} 22... Nxe3 $6 23. Qxe3 O-O 24. Bb3 $11) 23. Bb3 {[%emt 0:01:12]} O-O {[%emt 0:00:08]} 24. dxe5 {[%emt 0:02:21]} dxe4 {[%emt 0:05:26]} 25. Nxe4 {[%emt 0:00:11]} Rfd8 {[%emt 0:00:06]} 26. Bd4 {[%emt 0:01:00]} Bxe5 {[%emt 0:01:47]} 27. Bxc4 $4 {[%emt 0:02:33]} (27. h5 $11 {and White has nothing to worry.} Bxe4 28. fxe4) 27... bxc4 {[%emt 0:00:34]} 28. Qc3 $19 {[%emt 0:01:10]} (28. Rxc4 $142 Qxc4 29. Qxc4 Rxc4 30. Bxe5 Bxe4+ 31. fxe4 Rxe4 32. Bc7) 28... Bxd4 {[%emt 0:02:21]} 29. Nxd4 {[%emt 0:00:02]} Qb6+ {[%emt 0:00:39]} 30. Kc2 {[%emt 0:00:25]} Bxe4+ {[%emt 0:01:18]} 31. fxe4 {[%emt 0:00:02]} Qxd4 {[%emt 0:00:11]} 32. Rce1 {[%emt 0:03:01]} Qf2+ {[%emt 0:00:36]} 33. Kc1 {[%emt 0:00:01]} Rd3 {[%emt 0:00:32]} 34. Qb2 {[%emt 0:00:27]} Qf4+ {[%emt 0:00:06]} 0-1

[Event "Portugal Open 2019"]
[Site "Lisbon"]
[Date "2019.02.07"]
[Round "7.25"]
[White "Miedema, David"]
[Black "Carlsson, Ludvig"]
[Result "1-0"]
[ECO "B39"]
[WhiteElo "2356"]
[BlackElo "2217"]
[Annotator "RC"]
[PlyCount "45"]
[EventDate "2019.01.25"]
[EventType "swiss"]
[EventCountry "POR"]
[SourceTitle "playchess.com"]
[Source "ChessBase"]
[SourceQuality "1"]
[TimeControl "5400+30"]

1. e4 {[%emt 0:01:00]} c5 {[%emt 0:00:35]} 2. Nf3 {[%emt 0:00:05]} g6 {[%emt 0:00:08]} 3. d4 {[%emt 0:00:05]} cxd4 {[%emt 0:00:05]} 4. Nxd4 {[%emt 0:00:03]} Bg7 {[%emt 0:00:08]} 5. c4 {[%emt 0:00:04]} Nc6 {[%emt 0:00:05]} 6. Be3 {[%emt 0:00:04]} Nf6 {[%emt 0:00:05]} 7. Nc3 {[%emt 0:00:03]} Ng4 {[%emt 0:00:05]} 8. Qxg4 {[%emt 0:00:07]} Nxd4 {[%emt 0:00:03]} 9. Qd1 {[%emt 0:00:05]} e5 {[%emt 0:00:05]} 10. h4 {[%emt 0:16:52]} d6 {[%emt 0:18:22]} 11. h5 {[%emt 0:01:14]} Be6 {[%emt 0:02:19]} 12. Qd2 {[%emt 0:01:19]} Rc8 {[%emt 0:01:59]} 13. b3 {[%emt 0:05:46]} f5 {[%emt 0:09:16]} 14. hxg6 {[%emt 0:02:31]} hxg6 {[%emt 0:02:45]} 15. Rxh8+ {[%emt 0:00:04]} Bxh8 {[%emt 0:00:09]} 16. exf5 {[%emt 0:02:23]} Bxf5 {[%emt 0:06:07]} 17. Bd3 {[%emt 0:03:23]} Qh4 {[%emt 0:09:31]} 18. O-O-O {[%emt 0:01:49]} b5 {[%emt 0:00:12]} 19. Bxd4 {[%emt 0:02:25]} Qxd4 {[%emt 0:03:56]} 20. Bxf5 {[%emt 0:00:04]} gxf5 {[%emt 0:00:12]} 21. Qxd4 {[%emt 0:00:03]} exd4 {[%emt 0:00:09]} 22. Nxb5 {[%emt 0:00:02]} Be5 {[%emt 0:00:27]} 23. Nxd4 {[%emt 0:00:20]} 1-0

[Event "Portugal Open 2019"]
[Site "Lisbon"]
[Date "2019.02.08"]
[Round "8.9"]
[White "David, Alberto"]
[Black "Gu, Xiaobing"]
[Result "1-0"]
[ECO "E73"]
[WhiteElo "2560"]
[BlackElo "2326"]
[Annotator "RC"]
[PlyCount "75"]
[EventDate "2019.01.25"]
[EventType "swiss"]
[EventCountry "POR"]
[SourceTitle "playchess.com"]
[Source "ChessBase"]
[SourceQuality "1"]
[TimeControl "5400+30"]

1. d4 {[%emt 0:00:12]} Nf6 {[%emt 0:00:00]} 2. c4 {[%emt 0:00:27]} g6 {[%emt 0:00:52]} 3. Nc3 {[%emt 0:00:09]} Bg7 {[%emt 0:00:04]} 4. e4 {[%emt 0:00:04]} d6 {[%emt 0:00:03]} 5. Be2 {[%emt 0:00:09]} O-O {[%emt 0:00:33]} 6. Be3 {[%emt 0:00:05]} c6 {[%emt 0:04:08]} 7. Nf3 {[%emt 0:02:14]} Na6 {[%emt 0:07:31]} 8. O-O {[%emt 0:06:00]} e5 {[%emt 0:00:09]} 9. d5 {[%emt 0:00:07]} Ng4 {[%emt 0:00:28]} 10. Bg5 {[%emt 0:00:25]} f6 {[%emt 0:00:05]} 11. Bh4 {[%emt 0:01:36]} c5 {[%emt 0:01:33]} 12. Ne1 {[%emt 0:04:20]} Nh6 {[%emt 0:00:48]} 13. Nd3 {[%emt 0:03:15]} Bd7 {[%emt 0:12:32]} 14. a3 {[%emt 0:07:46]} b6 {[%emt 0:00:05]} 15. Rb1 {[%emt 0:03:27]} Qe7 {[%emt 0:01:15]} 16. f3 {[%emt 0:02:12]} Nf7 {[%emt 0:00:03]} 17. b4 {[%emt 0:01:16]} Bh6 {[%emt 0:08:23]} 18. Bf2 {[%emt 0:01:49]} f5 {[%emt 0:00:27]} 19. Kh1 {[%emt 0:01:59]} Bg5 {[%emt 0:14:40]} 20. bxc5 {[%emt 0:09:34]} bxc5 {[%emt 0:02:47]} 21. exf5 {[%emt 0:03:44]} gxf5 {[%emt 0:01:10]} 22. f4 {[%emt 0:00:05]} exf4 {[%emt 0:01:41]} 23. Be1 {[%emt 0:14:44]} Ne5 {[%emt 0:01:57]} 24. Nxf4 {[%emt 0:01:55]} Ng4 {[%emt 0:01:03]} 25. Rf3 {[%emt 0:01:27]} Rab8 {[%emt 0:13:08]} 26. Rxb8 {[%emt 0:04:15]} Rxb8 {[%emt 0:00:15]} 27. Bd2 {[%emt 0:00:12]} Bh4 {[%emt 0:07:55]} 28. Nd3 {[%emt 0:03:41]} Bf6 {[%emt 0:02:21]} 29. Nb5 {[%emt 0:04:05]} Bxb5 {[%emt 0:04:49]} 30. cxb5 {[%emt 0:00:04]} Rxb5 {[%emt 0:04:55]} 31. h3 {[%emt 0:02:23]} c4 {[%emt 0:02:34]} 32. hxg4 {[%emt 0:00:53]} cxd3 {[%emt 0:00:58]} 33. Bxd3 {[%emt 0:00:04]} Rxd5 {[%emt 0:00:39]} 34. Bc4 {[%emt 0:01:01]} Nc7 {[%emt 0:03:54]} 35. Qb3 {[%emt 0:01:11]} Qe5 {[%emt 0:01:58]} 36. Qb8+ {[%emt 0:02:12]} Kg7 {[%emt 0:00:01]} 37. Qxc7+ {[%emt 0:00:14]} Kg6 {[%emt 0:00:02]} 38. gxf5+ {[%emt 0:00:20]} 1-0

[Event "Portugal Open 2019"]
[Site "Lisbon"]
[Date "2019.02.08"]
[Round "8.17"]
[White "Rajesh, V A V"]
[Black "Sorensen, Hampus"]
[Result "1-0"]
[ECO "D28"]
[WhiteElo "2406"]
[BlackElo "2289"]
[Annotator "RC"]
[PlyCount "73"]
[EventDate "2019.01.25"]
[EventType "swiss"]
[EventCountry "POR"]
[SourceTitle "playchess.com"]
[Source "ChessBase"]
[SourceQuality "1"]
[TimeControl "5400+30"]

1. d4 {[%emt 0:00:06]} d5 {[%emt 0:00:04]} 2. c4 {[%emt 0:00:07]} c6 {[%emt 0:00:35]} 3. Nf3 {[%emt 0:00:06]} Nf6 {[%emt 0:00:47]} 4. e3 {[%emt 0:00:39]} e6 {[%emt 0:00:22]} 5. Bd3 {[%emt 0:00:28]} dxc4 {[%emt 0:01:45]} 6. Bxc4 {[%emt 0:00:05]} c5 {[%emt 0:00:55]} 7. O-O {[%emt 0:01:55]} a6 {[%emt 0:01:11]} 8. Qe2 {[%emt 0:01:42]} cxd4 {[%emt 0:02:18]} 9. exd4 {[%emt 0:07:21]} Be7 {[%emt 0:02:10]} 10. a4 {[%emt 0:01:00]} Nc6 {[%emt 0:00:45]} 11. Rd1 {[%emt 0:00:06]} O-O {[%emt 0:01:01]} 12. Nc3 {[%emt 0:00:05]} Nb4 {[%emt 0:06:35]} 13. Bg5 {[%emt 0:03:40]} Nbd5 {[%emt 0:10:16]} 14. Ne5 {[%emt 0:01:42]} Re8 {[%emt 0:22:51]} 15. Qf3 {[%emt 0:03:41]} Rf8 {[%emt 0:03:21]} 16. Bh4 {[%emt 0:10:12]} Nxc3 {[%emt 0:18:23]} 17. bxc3 {[%emt 0:00:09]} Nd7 {[%emt 0:01:26]} 18. Nxd7 {[%emt 0:04:47]} Qxd7 {[%emt 0:01:06]} 19. Bg3 {[%emt 0:00:18]} Bd6 {[%emt 0:01:41]} 20. Bd3 {[%emt 0:02:00]} Bxg3 {[%emt 0:03:31]} 21. hxg3 {[%emt 0:00:06]} g6 {[%emt 0:00:47]} 22. g4 {[%emt 0:00:45]} h6 {[%emt 0:01:41]} 23. Be4 {[%emt 0:00:43]} Kg7 {[%emt 0:01:26]} 24. Rdb1 {[%emt 0:00:24]} Qc7 {[%emt 0:02:56]} 25. a5 {[%emt 0:05:57]} Rb8 {[%emt 0:00:59]} 26. Rb6 {[%emt 0:00:09]} Rd8 {[%emt 0:06:34]} 27. Rab1 {[%emt 0:04:16]} Rd7 {[%emt 0:00:30]} 28. R1b4 {[%emt 0:04:47]} Re7 {[%emt 0:03:04]} 29. c4 {[%emt 0:00:59]} f5 {[%emt 0:02:12]} 30. Bd3 {[%emt 0:00:57]} Bd7 {[%emt 0:00:38]} 31. Rxb7 {[%emt 0:01:31]} Rxb7 {[%emt 0:00:08]} 32. Rxb7 {[%emt 0:00:06]} Qxa5 {[%emt 0:00:30]} 33. Qe3 {[%emt 0:00:12]} Kf7 {[%emt 0:00:54]} 34. c5 {[%emt 0:00:35]} Qa3 {[%emt 0:02:27]} 35. gxf5 {[%emt 0:00:21]} exf5 {[%emt 0:00:46]} 36. Bc4+ {[%emt 0:00:05]} Kf6 {[%emt 0:00:38]} 37. Qxa3 {[%emt 0:00:06]} 1-0

[Event "Portugal Open 2019"]
[Site "Lisbon"]
[Date "2019.02.08"]
[Round "8.27"]
[White "Plichta, Kamil"]
[Black "Gallardo Fernandez, Cesar"]
[Result "1-0"]
[ECO "A45"]
[WhiteElo "2347"]
[BlackElo "2194"]
[Annotator "RC"]
[PlyCount "61"]
[EventDate "2019.01.25"]
[EventType "swiss"]
[EventCountry "POR"]
[SourceTitle "playchess.com"]
[Source "ChessBase"]
[SourceQuality "1"]
[TimeControl "5400+30"]

1. d4 {[%emt 0:00:00]} Nf6 {[%emt 0:01:41]} 2. Bg5 {[%emt 0:00:00]} Ne4 {[%emt 0:01:43]} 3. h4 {[%emt 0:00:00]} h6 {[%emt 0:00:51]} 4. Bf4 {[%emt 0:00:02]} c5 {[%emt 0:02:37]} 5. d5 {[%emt 0:00:06]} Qb6 {[%emt 0:04:14]} 6. Nd2 {[%emt 0:00:07]} Nxd2 {[%emt 0:00:42]} 7. Bxd2 {[%emt 0:00:05]} e5 {[%emt 0:05:09]} 8. dxe6 {[%emt 0:02:23]} dxe6 {[%emt 0:00:32]} 9. Bc3 {[%emt 0:00:48]} Nc6 {[%emt 0:01:30]} 10. e3 {[%emt 0:01:25]} Bd7 {[%emt 0:04:41]} 11. a3 {[%emt 0:00:57]} Ne7 {[%emt 0:17:54]} 12. e4 {[%emt 0:04:52]} Bc6 {[%emt 0:01:33]} 13. Qe2 {[%emt 0:11:30]} O-O-O {[%emt 0:03:42]} 14. Nf3 {[%emt 0:00:57]} Ng6 {[%emt 0:10:08]} 15. h5 {[%emt 0:02:07]} Nf4 {[%emt 0:04:34]} 16. Qe3 {[%emt 0:00:06]} Nd5 {[%emt 0:01:42]} 17. exd5 {[%emt 0:00:50]} exd5 {[%emt 0:00:06]} 18. O-O-O {[%emt 0:02:44]} d4 {[%emt 0:01:16]} 19. Nxd4 {[%emt 0:00:15]} cxd4 {[%emt 0:00:51]} 20. Bxd4 {[%emt 0:00:12]} Bc5 {[%emt 0:12:25]} 21. Bxc5 {[%emt 0:01:35]} Rxd1+ {[%emt 0:00:07]} 22. Kxd1 {[%emt 0:00:05]} Qxb2 {[%emt 0:00:08]} 23. Bd3 {[%emt 0:07:38]} Rd8 {[%emt 0:01:47]} 24. Re1 {[%emt 0:12:16]} Bb5 {[%emt 0:06:27]} 25. Qh3+ {[%emt 0:03:26]} Kb8 {[%emt 0:00:20]} 26. Re3 {[%emt 0:00:45]} Qb1+ {[%emt 0:02:43]} 27. Kd2 {[%emt 0:00:35]} Ba4 {[%emt 0:00:35]} 28. Qg3+ {[%emt 0:00:48]} Ka8 {[%emt 0:00:16]} 29. Bd6 {[%emt 0:01:06]} Rc8 {[%emt 0:02:00]} 30. Bc7 {[%emt 0:00:16]} Qb2 {[%emt 0:00:33]} 31. Qg4 {[%emt 0:01:01]} 1-0

[Event "Portugal Open 2019"]
[Site "Lisbon"]
[Date "2019.02.08"]
[Round "8.33"]
[White "Campora, Daniel H."]
[Black "Eggert, Alberto"]
[Result "1-0"]
[ECO "B50"]
[WhiteElo "2419"]
[BlackElo "2132"]
[Annotator "RC"]
[PlyCount "85"]
[EventDate "2019.01.25"]
[EventType "swiss"]
[EventCountry "POR"]
[SourceTitle "playchess.com"]
[Source "ChessBase"]
[SourceQuality "1"]
[TimeControl "5400+30"]

1. e4 c5 2. Nf3 d6 3. c3 Nf6 4. Bd3 Bg4 5. O-O Nc6 6. h3 Bh5 7. Re1 e6 8. Bf1 h6 9. d3 g5 10. Nbd2 g4 11. hxg4 Nxg4 12. d4 Qf6 13. e5 dxe5 14. Ne4 Qd8 15. Qb3 Qb6 16. dxe5 O-O-O 17. Bf4 Qxb3 18. axb3 a6 19. Ned2 Be7 20. Nc4 Bg6 21. Bg3 Kc7 22. Bh4 Bxh4 23. Nxh4 Rd5 24. f4 Bc2 25. Nd6 Bxb3 26. Be2 f5 27. Ra3 c4 28. Nxc4 Bc2 29. Bf3 Be4 30. Bxg4 fxg4 31. Rxe4 Rd1+ 32. Kf2 Rf8 33. g3 b5 34. Nd6 Nxe5 35. Nxb5+ axb5 36. Rxe5 Rfd8 37. Ra7+ Kb6 38. Re7 R8d2+ 39. Re2 Rxe2+ 40. Kxe2 Rd6 41. b4 Kc6 42. Ng6 Kd5 43. Kd3 1-0

[Event "Portugal Open 2019"]
[Site "Lisbon"]
[Date "2019.02.09"]
[Round "9.3"]
[White "Petrov, Nikita"]
[Black "Bernadskiy, Vitaliy"]
[Result "1/2-1/2"]
[ECO "B10"]
[WhiteElo "2585"]
[BlackElo "2570"]
[Annotator "ChessBase"]
[PlyCount "41"]
[EventDate "2019.01.25"]
[EventType "swiss"]
[EventCountry "POR"]
[SourceTitle "playchess.com"]
[Source "ChessBase"]
[SourceQuality "1"]
[TimeControl "5400+30"]

1. e4 {[%emt 0:00:00]} c6 {[%emt 0:00:00]} 2. Nc3 {[%emt 0:00:16]} d5 {[%emt 0:00:00]} 3. Nf3 {[%emt 0:00:06]} dxe4 {[%emt 0:01:04]} 4. Nxe4 {[%emt 0:00:08]} Nf6 {[%emt 0:00:02]} 5. Qe2 {[%emt 0:00:44]} Nxe4 {[%emt 0:01:39]} 6. Qxe4 {[%emt 0:00:06]} Qd5 {[%emt 0:00:04]} 7. Qh4 {[%emt 0:00:35]} Qe6+ {[%emt 0:00:35]} 8. Be2 {[%emt 0:00:08]} Qg4 {[%emt 0:00:07]} 9. Qg3 {[%emt 0:00:08]} Qxg3 {[%emt 0:03:25]} 10. hxg3 {[%emt 0:00:27]} g6 {[%emt 0:08:49]} 11. d4 {[%emt 0:02:44]} Nd7 {[%emt 0:00:05]} 12. g4 {[%emt 0:07:27]} Bg7 {[%emt 0:09:57]} 13. Bh6 {[%emt 0:01:59]} O-O {[%emt 0:00:10]} 14. O-O-O {[%emt 0:05:46]} Rd8 {[%emt 0:00:28]} 15. c3 {[%emt 0:10:46]} Nf8 {[%emt 0:01:51]} 16. Ng5 {[%emt 0:06:04]} Be6 {[%emt 0:04:52]} 17. Nxe6 {[%emt 0:01:23]} Bxh6+ {[%emt 0:01:18]} 18. Rxh6 {[%emt 0:00:08]} Nxe6 {[%emt 0:00:02]} 19. Bc4 {[%emt 0:02:01]} Kg7 {[%emt 0:01:02]} 20. Rh3 {[%emt 0:02:30]} Nf4 {[%emt 0:02:42]} 21. Rh2 {[%emt 0:08:24]} 1/2-1/2